Cogmind - Beta 17 @@@ ROGUE MODE // 2026.07.25 @ 18:49:57 Player: rz Result: Destroyed by as-08038 with Assembled Rifle Performance ------------- Evolutions (0) 0 Regions Visited (2) 400 Robots Destroyed (8) 40 Value Destroyed (118) 118 Prototype IDs (1) 20 Alien Tech Used (0) 0 Bonus (5850) 5850 TOTAL SCORE: 6428 Bonus ------- Prayed to X0-1V1 5000 Major X0-1V1 Interference 850 Cogmind --------- Core Integrity 0/150 Matter 761/1000 Energy 994/1000 System Corruption 0% Temperature Cool (0) Movement Core (50) Location -10/Mines Parts ------- > --- POWER (1) -------- (None) > --- PROPULSION (2) --- (None) > --- UTILITY (2) ------ (None) > --- WEAPON (2) ------- (None) > --- INVENTORY (5) ---- Light Treads Experimental Sensor Array Tractor Beam Heavy Assault Rifle Heavy Assault Rifle Peak State ------------ > --- POWER ------------ Light Ion Engine > --- PROPULSION ------- Light Treads Light Treads > --- UTILITY ---------- Small Storage Unit X0-1V1's Piety Tracker > --- WEAPON ----------- Assault Rifle Assault Rifle > --- INVENTORY -------- Light Ion Engine Experimental Sensor Array Improved Terrain Scanner Tractor Beam Light Assault Rifle Mining Laser [Rating: 20] Favorites ----------- Power Light Ion Engine Engine Light Ion Engine Propulsion Light Treads Treads Light Treads Utility Small Storage Unit Device X0-1V1's Piety Tracker Storage Small Storage Unit Weapon Assault Rifle Ballistic Gun Assault Rifle Build | -11 -10 -10 ------- Run | Yrd Mat Min Slots Evolved . | . . . Power . | . . . Propulsion . | . . . Utility . | . . . Weapon . | . . . Parts Attached 9 | 7 1 1 Power 1 | 1 . . Engine 1 | 1 . . Core . | . . . Reactor . | . . . Propulsion 3 | 2 . 1 Treads 3 | 2 . 1 Leg . | . . . Wheel . | . . . Hover . | . . . Flight . | . . . Utility 3 | 2 1 . Device 2 | 1 1 . Storage 1 | 1 . . Processor . | . . . Hackware . | . . . Protection . | . . . Artifact . | . . . Weapon 2 | 2 . . Energy Gun . | . . . Energy Cannon . | . . . Ballistic Gun 2 | 2 . . Ballistic Cannon . | . . . Launcher . | . . . Special Weapon . | . . . Impact Weapon . | . . . Slashing Weapon . | . . . Piercing Weapon . | . . . Special Melee Weapon . | . . . Unidentified Prototypes 1 | . 1 . Parts Lost 2 | . . 2 Power 1 | . . 1 Propulsion . | . . . Utility 1 | . . 1 Weapon . | . . . Highest Loss Streak 2 | . . 2 To Critical Strikes . | . . . Average Backups 4 | 2 4 6 Power . | . 1 1 Propulsion . | . . . Utility 1 | . 1 2 Weapon 1 | . 2 2 Tool/Special . | . . . Unused Backups 9 | . . 9 Power 1 | . . 1 Propulsion . | . . . Utility 3 | . . 3 Weapon 5 | . . 5 Tool/Special . | . . . Average Slot Usage (%) 97 | . 100 96 Engine 13 | . 14 12 Treads 27 | . 28 27 Device 13 | . 14 13 Storage 13 | . 14 13 Ballistic Gun 27 | . 28 27 Peak Build Rating 20 | 9 19 20 Average Rating 14 | 6 13 19 On Entrance 9 | . 9 19 Avg Prop Armor Cover (%) . | . . . Naked Turns 2 | . . 2 Heaviest Build 13 | 13 13 13 Greatest Support 40 | 40 40 40 Greatest Overweight (x) 2 | 2 . . Average Overweight (x) . | . . . Largest Inventory Capacity 8 | 8 8 8 Average Capacity 7 | 7 8 7 Most Carried 8 | 4 5 8 Average Carried 4 | 2 4 6 Final Capacity 8 | 8 8 5 Final Carried 5 | 4 5 5 Class Distribution -------------------- 100% | Mutant Dominant Class ---------------- Mutant | -10/Materials Mutant | -10/Mines Resources | -11 -10 -10 ----------- Run | Yrd Mat Min Matter Collected 858 | 293 45 520 Remotely . | . . . Salvage Created 287 | 130 45 112 Parts 30 | 13 2 15 Haulers Intercepted . | . . . Recyclers Shooed 1 | . 1 . Parts Field Recycled . | . . . Retrieved Matter . | . . . Parts Self-Destructed . | . . . Prevented . | . . . Parts Restored . | . . . Kills | -11 -10 -10 ------- Run | Yrd Mat Min Combat Hostiles Destroyed 3 | . 1 2 Guns 3 | . 1 2 Classes Destroyed 6 | 2 1 3 Builder 1 | . . 1 Tunneler 4 | 3 . 1 Recycler 1 | 1 . . Grunt 1 | . 1 . Sentry 1 | . . 1 Assembled 1 | . . 1 Best Kill Streak 4 | 4 1 3 Combat Bots Only 1 | . 1 1 Max Kills in Single Turn 1 | 1 1 1 Gunslinging . | . . . Exploded . | . . . Melee . | . . . Uniques/NPCs Destroyed . | . . . Combat | -11 -10 -10 -------- Run | Yrd Mat Min Hostile Shots Fired 67 | . 3 64 Missed 19 | . 1 18 Hits 48 | . 2 46 Melee 4 | . . 4 Projectile 44 | . 2 42 Part Disruptions 1 | . . 1 Damage Taken 635 | . 23 612 Core 161 | . 11 150 Absorbed by Shields . | . . . Core Remaining (%) 100 | 100 . . Volleys Fired 23 | 9 5 9 Largest 2 | 2 2 2 Hottest 40 | 40 40 40 Shots Fired 46 | 18 10 18 Gun 46 | 18 10 18 Cannon . | . . . Launcher . | . . . Special . | . . . Kinetic 46 | 18 10 18 Thermal . | . . . Explosive . | . . . Electromagnetic . | . . . Robot Hit Streak 9 | 3 8 9 Robot Miss Streak 3 | 3 1 1 Penetration Max . | . . . Secondary Targets . | . . . Shots Hit Robots 31 | 10 8 13 Core Hits 16 | 5 4 7 Critical Kills . | . . . Critical Parts Destroyed . | . . . Critical Strikes . | . . . Melee Attacks . | . . . Impact . | . . . Slashing . | . . . Piercing . | . . . Sneak Attacks . | . . . Combat Hostiles . | . . . Follow-up Attacks . | . . . Damage Inflicted 415 | 133 103 179 Guns 408 | 133 103 172 Cannons . | . . . Explosions . | . . . Melee . | . . . Ramming 7 | . . 7 Kinetic 408 | 133 103 172 Thermal . | . . . Explosive . | . . . Electromagnetic . | . . . Impact . | . . . Slashing . | . . . Piercing . | . . . Highest Corruption 8 | . 2 8 Average Corruption 2 | . 2 2 Corruption Purged . | . . . Corruption Blocked . | . . . Effects 3 | . 1 2 Message Errors 1 | . . 1 Energy Discharges 1 | . 1 . Alerts 1 | . . 1 Overload Shots . | . . . Overflow Damage . | . . . Projectiles . | . . . Explosions . | . . . Melee . | . . . Knockbacks . | . . . Impact . | . . . Kinetic . | . . . Secondary . | . . . Self-Inflicted Damage 1 | . . 1 Shots . | . . . Rammed 6 | . . 6 Targets Rammed 6 | . . 6 Kicked . | . . . Crushed . | . . . Highest Temperature 15 | . . 15 Average Temperature 8 | . . 8 Received Heat Transfer 250 | . 12 238 Siege Activations . | . . . Martial Activations . | . . . Shielding Activations . | . . . Robots Disrupted . | . . . Combat Hostiles . | . . . Robots Corrupted . | . . . Combat Hostiles . | . . . Parts Fried . | . . . Impact Corruptions . | . . . Robots Melted . | . . . Combat Hostiles . | . . . Parts Melted . | . . . Heat Transferred . | . . . Parts Sabotaged . | . . . Parts Stolen . | . . . Parts Stripped . | . . . Power Chain Reactions . | . . . Alert | -11 -10 -10 ------- Run | Yrd Mat Min Maximum Alert Level . | . . . Low Security (%) 100 | 100 100 100 Level 1 . | . . . Level 2 . | . . . Level 3 . | . . . Level 4 . | . . . Level 5 . | . . . High Security . | . . . Max Security . | . . . Peak Influence 102 | 5 20 102 Initial . | . . . Average 18 | 1 1 37 Influence Increases 172 | 20 20 132 Destroy 0b10 Robot/C 40 | . 20 20 Destroy 0b10 Robot/NC 30 | 20 . 10 Miscellaneous 102 | . . 102 Influence Decreases 160 | 20 20 120 Time Decay 140 | 20 20 100 Lost Part 20 | . . 20 Squads Dispatched 1 | . 1 . Investigation . | . . . Extermination . | . . . Reinforcement 1 | . 1 . Assault . | . . . Garrison . | . . . Intercept . | . . . Searches Triggered . | . . . Construction Impeded . | . . . Haulers Reinforced . | . . . Active Scanning Responses . | . . . Cargo Convoy Interrupts . | . . . Stealth | -11 -10 -10 --------- Run | Yrd Mat Min Distress Signals . | . . . Communications Jammed . | . . . Distress Signals . | . . . Times Spotted 25 | . 1 24 Peak Tracking Total 17 | . 1 17 Tactical Retreats 1 | . . 1 Traps | -11 -10 -10 ------- Run | Yrd Mat Min Traps Triggered . | . . . Indirectly . | . . . Trap Hack Attempts . | . . . Triggered . | . . . Disarmed . | . . . Reprogrammed . | . . . Reused . | . . . Traps Extracted . | . . . Installed . | . . . Triggered . | . . . Machines | -11 -10 -10 ---------- Run | Yrd Mat Min Machines Disabled . | . . . Max in Single Turn . | . . . Machines Repaired . | . . . Machines Dismantled . | . . . Machines Sabotaged . | . . . Overloaded Fab Kills . | . . . Hacking | -11 -10 -10 --------- Run | Yrd Mat Min Machines Accessed . | . . . Terminals . | . . . Fabricators . | . . . Repair Stations . | . . . Recycling Units . | . . . Scanalyzers . | . . . Garrison Access . | . . . Total Hacks . | . . . Successful . | . . . Failed . | . . . Catastrophic . | . . . Database Lockouts . | . . . Manual 1 | . 1 . Terminals . | . . . Fabricators . | . . . Repair Stations . | . . . Recycling Units . | . . . Scanalyzers . | . . . Garrison Access . | . . . Terminal Hacks . | . . . Fabricator Hacks . | . . . Repair Station Hacks . | . . . Recycling Unit Hacks . | . . . Scanalyzer . | . . . Garrison Access Hacks . | . . . Unauthorized Hacks . | . . . Terminals . | . . . Fabricators . | . . . Repair Stations . | . . . Recycling Units . | . . . Scanalyzers . | . . . Garrison Access . | . . . Data Cores Recovered . | . . . Used . | . . . Hacking Detections . | . . . Full Trace Events . | . . . Feedback Events . | . . . Feedback Blocked . | . . . Robot Schematics Acquired . | . . . Robots Built . | . . . Authchips . | . . . Time . | . . . Total Robot Build Rating . | . . . Part Schematics Acquired . | . . . Parts Built . | . . . Authchips . | . . . Time . | . . . Total Part Build Rating . | . . . Part Studies Acquired . | . . . Parts Repaired . | . . . Time . | . . . Parts Recycled . | . . . Recycled Matter . | . . . Retrieved Matter . | . . . Retrieved Components . | . . . Parts Scanalyzed . | . . . Part Schematics Acquired . | . . . Parts Damaged . | . . . Bothacking | -11 -10 -10 ------------ Run | Yrd Mat Min Used RIF Installer . | . . . Robots Hacked . | . . . Non-combat . | . . . Combat . | . . . Robot Hacks Applied . | . . . Relay Couplers Released . | . . . Fabnet Peak Effective % . | . . . Robots Rewired . | . . . Allies Hacked . | . . . Hacks Repelled . | . . . Allies | -11 -10 -10 -------- Run | Yrd Mat Min Total Allies . | . . . Largest Group . | . . . Highest-Rated Group . | . . . Highest-Rated Ally . | . . . Total Orders . | . . . Ally Attacks . | . . . Total Damage . | . . . Kills . | . . . Allies Corrupted . | . . . Allies Melted . | . . . X0-1V1 Amusement Gains 86 | . 6 80 Good Acts 10 | . 1 9 Bad Acts 5 | . 1 4 Intel | -11 -10 -10 ------- Run | Yrd Mat Min Active Infowar (turns) 188 | 56 132 . Terrain 188 | 56 132 . Robot Analysis Total . | . . . Derelict Logs Recovered . | . . . Drone Launches . | . . . Drone Recoveries . | . . . Exploration | -11 -10 -10 ------------- Run | Yrd Mat Min Turns Passed 720 | 144 233 343 Spaces Moved 329 | 68 71 190 Core 13 | 12 . 1 Treads 316 | 56 71 189 Legs . | . . . Wheels . | . . . Hover . | . . . Flight . | . . . Fastest Speed 50 | 50 160 50 Average Speed 157 | 149 160 159 Slowest Speed 160 | 160 160 160 Overloaded Moves . | . . . Propulsion Burnouts . | . . . Robots Hopped . | . . . Potential Cave-ins . | . . . Cave-ins Triggered . | . . . Exploration Rate (%) 25 | 3 20 52 Regions Visited 2 Branch Regions 1 Pre-discovered Areas . | . . . Known Exits Taken . | . . . Unknown Exits Taken 2 | 1 1 . Scrap Searched . | . . . Spaces Dug . | . . . Terrain Destroyed . | . . . Melee . | . . . Projectile . | . . . AOE . | . . . Terrain Rammed . | . . . Walls Destroyed . | . . . Machines Disabled . | . . . Actions | -11 -10 -10 --------- Run | Yrd Mat Min Total 482 | 91 180 211 Wait 103 | . 103 . Move 327 | 67 70 190 Hop . | . . . Pick Up 13 | 8 1 4 Fast Attach 3 | 3 . . Attach 4 | 4 . . Detach . | . . . Swap 2 | . 1 1 Drop 1 | . . 1 Fire 23 | 9 5 9 Melee . | . . . Ram 2 | . . 2 Kick . | . . . Crush 4 | . . 4 Escape Stasis . | . . . Rewire . | . . . Trap . | . . . Miscellaneous . | . . . Route ------- -11/Scrapyard -10/Materials -10/Mines (discovered 3 exits: [*Mat x2] / Sub) History --------- Turn | Location | Event 10 | -11/Scrapyard | Discovered new exit (range 15) 145 | -11/Scrapyard | Entered Materials 276 | -10/Materials | Prayed at D.C.S.S. Altar Unit 317 | -10/Materials | Build established: Mutant 345 | -10/Materials | Discovered new exit (range 10) 378 | -10/Materials | Entered Mines 388 | -10/Mines | Matter capacity permanently improved by X0-1V1 (+200; -100 max core) 390 | -10/Mines | Met a Derelict bent on vengeance 393 | -10/Mines | Discovered new exit (range 12) 479 | -10/Mines | Found a damaged Exp. Sensor Array with a note attached 484 | -10/Mines | Found Prototype Device 531 | -10/Mines | X0-1V1 added 0b10 threat records associated with you (minor) 584 | -10/Mines | Discovered new exit (range 5) 584 | -10/Mines | X0-1V1 sent you into danger 602 | -10/Mines | X0-1V1 activates XOMVISION 638 | -10/Mines | Identified exit to Subcaves 638 | -10/Mines | X0-1V1 revealed exit location to -10/Subcaves 678 | -10/Mines | Assembled infested the area 719 | -10/Mines | Released all parts (5) 720 | -10/Mines | Core integrity fell below 50% 721 | -10/Mines | Core integrity fell below 20% 721 | -10/Mines | Destroyed by as-08038 with Assembled Rifle Last Messages --------------- crushing effect. 00699_ as-90006 destroyed. 00701_ X0-1V1 briefly opens a portal to the matter dimension. 00702_ Acquired 408 matter. 00703_ as-28403 destroyed. 00704_ D-53 Grenadier destroyed. 00711_ Slammed into as-73838. 00711_ X0-1V1's Piety Tracker destroyed. 00711_ X0-1V1 is mildly amused. 00712_ Acquired 14 matter. 00713_ Slammed into as-58014. 00718_ Ranged accuracy returns to normal. 00718_ Slammed into as-53507. 00719_ Released Assault Rifle. 00719_ Released Lgt. Treads. 00719_ Released Sml. Storage Unit. 00719_ Released Lgt. Treads. 00719_ Slammed into as-53507. 00721_ X0-1V1 chortles! Map ----- +----------------------------------------------------+ | # ##??????????????????????????????????? | | # #### ##???????????????????????????????????? | | ## #??## #?????????????? ?????????????????????? | | ?# #???## ##????????????? #?????????????????????? | | ?# #????####????????????? #??????????????????????? | | ## #???????????????????? #??????????????????????? | | #??????????????????? #??????????????????????? | | ###??????????????????? #??????????????????????? | | ???????????#######??? ##?????????????????????? | | ???????????# ### ##????????????????????? | | ???????????# #????????????????????? | | ???????????# #???????????????????? | | ???????????# r######## #???????????????????? | | ???????????# < #????????a ?????????????????????? | | ???????????#[ #????????%#?????????????????????? | | ???????????## ###????????=#?????????????????????? | | ????????????# #??????????%###???????????????????? | | ????????##### #??????####=* ##??????????????????? | | ????????# |! #??????# !$ ##????? #??????????? | | ????????# ######?????## ! #??? #??????????? | | ????????# #??????????? %%! #? ####???????? | | ??????### #??########## %! ### #???????? | | ?????## #### ##= = #???????? | | ?????# ## aaaaaaa #??????? | | ?????# [[!a ! ??????? | | ?????## ##aa@ a a ??????? | | ??????## ####### ### ??????? | | ???????##### ##?????# ## ??????? | | ???????????## #??????#### ##????? ???????? | | ????????????# #???###????? ###???????????????? | | ###?????????# ##?# ##????? ##?????????????????? | | #?????????## ## #??????#??????????????????? | | #?????????## ##????????????????????????? | | #?????????# #????????????????????????? | | #????????# #???????????????????????? | | #???????# #??????????????????????? | | #???????# #??????????????????????? | | ########## ##??????????????????????? | | #### ## #???????????????????????? | | #######?# ##???????????????????????? | | ###### ###?????# ##????????????????????????? | | ?????# ##?????####?????????????????????????? | | ?????## #??????????????????????????????????? | | ??????### #?????????????????????????????????? | | ?????????# #?????????????????????????????????? | | ??????????# #?????????????????????????????????? | | ???????????# ##?????????????????????????????????? | | ????????????###??????????????????????????????????? | | ?????????????????????????????????????????????????? | | ?????????????????????????????????????????????????? | +----------------------------------------------------+ Best States ------------- Heat Dissipation 25 Energy Generation 10 Energy Capacity 1025 Matter Stores 756 Matter Capacity 1000 Sight Range 18 Terrain Scan Range 16 Terrain Scan Density 10 Evasion (%) 40 Recoil Reduction 2 Item Schematics ----------------- None Robot Schematics ------------------ None Fabricated ------------ Nothing Repaired ---------- Nothing Studied --------- None Alien Tech Used ----------------- None Achievements -------------- None Challenges ------------ None Game ------ Seed ChromaticFortressMaxwheels Manual? 0 Play Time 00:08:04 Cumulative 111.0 hours Start 2026.07.25 @ 18:43:25 End 2026.07.25 @ 18:49:57 Sessions 1 Manual Loads 0 Difficulty Rogue Special Mode None Game No. 124 Rogue 70 Adventurer 54 Explorer 0 Win Type - Total 3 Types 2/0/0/1/0/0/0/0/0/0 Lore% 50 Gallery% 49 Achievement% 44 Wizard Run 0 Options --------- Layout 1 ASCII 0 Keyboard 0 Movement Mouse Keybinds 1 Fullscreen 1 Font 32/Tamsyn Map View 50x35 Zoom Use 0% Tactical HUD 1 Map Filters NONE Filters NONE Steam 1 RUN: 3073b1e8-c95e-4897-824b-8ade0ab05e91